fUSD/lending_fUSD_20260622
["ID","MTS","AMOUNT","RATE_DAILY","PERIOD"]
[426018839,1782118271000,-500.0,0.00027671,2]
[426018844,1782118271000,-500.0,0.00027671,2]
[426018845,1782118271000,-183.70396478,0.00027671,2]
[426018851,1782118271000,-500.0,0.00027671,2]
[426018848,1782118271000,-153.462816,0.00027671,7]
[426018840,1782118271000,-500.0,0.00027671,2]
[426018847,1782118271000,-500.0,0.00027671,2]
[426018852,1782118271000,-500.0,0.00027671,2]
[426018837,1782118271000,-500.0,0.00027671,2]
[426018829,1782118271000,-500.0,0.00027671,2]
[426018832,1782118271000,-500.0,0.00027671,2]
[426018835,1782118271000,-500.0,0.00027671,2]
[426018827,1782118271000,-500.0,0.00027671,2]
[426018828,1782118271000,-677.87,0.00027671,2]
[426018833,1782118271000,-500.0,0.00027671,2]
[426018834,1782118271000,-500.0,0.00027671,2]
[426018826,1782118271000,-502.05027256,0.00027671,2]
[426018830,1782118271000,-472.57310179,0.00027671,2]
[426018823,1782118271000,-500.0,0.00027671,2]
[426018825,1782118271000,-1170.064527,0.00027671,7]
[426018824,1782118271000,-500.0,0.00027671,2]
[426018836,1782118271000,-500.0,0.00027671,2]
[426018850,1782118271000,-500.0,0.00027671,2]
[426018831,1782118271000,-500.0,0.00027671,2]
[426018859,1782118271000,-500.0,0.00027671,2]
[426018855,1782118271000,-500.0,0.00027671,2]
[426018882,1782118271000,-620.27153537,0.00027671,2]
[426018880,1782118271000,-500.0,0.00027671,2]
[426018879,1782118271000,-500.0,0.00027671,2]
[426018878,1782118271000,-1643.99,0.00027671,2]
[426018876,1782118271000,-500.0,0.00027671,2]
[426018881,1782118271000,-151.0,0.00027671,7]
[426018877,1782118271000,-159.104499,0.00027671,7]
[426018875,1782118271000,-500.0,0.00027671,2]
[426018869,1782118271000,-500.0,0.00027671,2]
[426018870,1782118271000,-517.09413287,0.00027671,2]
[426018871,1782118271000,-500.57258107,0.00027671,2]
[426018868,1782118271000,-183.793458,0.00027671,7]
[426018867,1782118271000,-700.0,0.00027671,2]
[426018872,1782118271000,-151.0,0.00027671,7]
[426018857,1782118271000,-500.0,0.00027671,2]
[426018865,1782118271000,-500.0,0.00027671,2]
[426018864,1782118271000,-500.0,0.00027671,2]
[426018873,1782118271000,-1060.0,0.00027671,2]
[426018862,1782118271000,-500.0,0.00027671,2]
[426018866,1782118271000,-1212.61,0.00027671,2]
[426018863,1782118271000,-500.0,0.00027671,2]
[426018858,1782118271000,-788.76,0.00027671,2]
[426018874,1782118271000,-151.0,0.00027671,7]
[426018856,1782118271000,-500.0,0.00027671,2]
[426018860,1782118271000,-189.645672,0.00027671,7]
[426018854,1782118271000,-500.0,0.00027671,2]
[426018861,1782118271000,-151.0,0.00027671,7]
[426018853,1782118271000,-779.48,0.00027671,2]
[426018884,1782118272000,-500.0,0.00027397,2]
[426018886,1782118272000,-250.53882,0.00027397,2]
[426018883,1782118272000,-319.0,0.00020915,2]
[426018885,1782118272000,-500.0,0.00027397,2]
[426018888,1782118272000,-1128.053169,0.00027397,2]
[426018890,1782118272000,-159.488813,0.00027397,2]
[426018891,1782118272000,-840.62497494,0.00027671,2]
[426018889,1782118272000,-1128.053169,0.00027397,2]
[426018887,1782118272000,-250.53882,0.00027397,2]
[426018894,1782118274000,-246.87101353,0.00014,2]
[426018893,1782118274000,-13.48122796,0.00012728,2]
[426018892,1782118274000,-486.51877204,0.00012728,2]
[426018897,1782118274000,-242.85928435,0.00018,2]
[426018895,1782118274000,-3.12898647,0.00014,2]
[426018896,1782118274000,-300.0,0.00016,2]
[426018898,1782118275000,-462.31375,0.000159,2]
[426018904,1782118647000,-88.39,0.00010709,2]
[426018903,1782118647000,-303.87,0.00010701,2]
[426018902,1782118647000,-303.87,0.00010695,2]
[426018901,1782118647000,-303.87,0.00010691,2]
[426018906,1782118649000,-303.87,0.00010718,2]
[426018905,1782118649000,-215.48,0.00010709,2]
[426018908,1782118649000,-176.78,0.00010741,2]
[426018912,1782118649000,-265.17,0.00010782,2]
[426018909,1782118649000,-127.09,0.00010741,2]
[426018910,1782118649000,-303.87,0.00010754,2]
[426018911,1782118649000,-303.87,0.00010768,2]
[426018907,1782118649000,-303.87,0.00010729,2]
[426018913,1782118650000,-38.7,0.00010782,2]
[426018916,1782118650000,-303.87,0.00010832,2]
[426018914,1782118650000,-303.87,0.00010798,2]
[426018915,1782118650000,-303.87,0.00010815,2]
[426018917,1782118650000,-49.69,0.0001085,2]
[426018918,1782118650000,-254.18,0.0001085,2]
[426018923,1782118650000,-303.87,0.00010928,2]
[426018921,1782118650000,-138.08,0.00010908,2]
[426018919,1782118650000,-303.87,0.00010868,2]
[426018922,1782118650000,-165.79,0.00010908,2]
[426018924,1782118650000,-303.87,0.0001095,2]
[426018925,1782118650000,-226.47,0.00010971,2]
[426018920,1782118650000,-303.87,0.00010888,2]
[426018926,1782118651000,-77.4,0.00010971,2]
[426018927,1782118651000,-303.87,0.00010994,2]
[426018930,1782118651000,-10.99,0.00011064,2]
[426018928,1782118651000,-303.87,0.00011017,2]
[426018931,1782118651000,-292.88,0.00011064,2]
[426018932,1782118651000,-303.87,0.00011089,2]
[426018933,1782118651000,-151.33,0.00011254,2]
[426018934,1782118651000,-251.92,0.00012661,2]
[426018929,1782118651000,-303.87,0.0001104,2]
[426018935,1782118652000,-1000.0,0.00012661,2]
[426018936,1782118652000,-303.87,0.00011114,2]
[426018938,1782118652000,-256.97225578,0.00012725,2]
[426018937,1782118652000,-69.364391,0.00012661,2]
[426018940,1782118652000,-130.20664678,0.00012725,2]
[426018941,1782118652000,-500.0,0.00012725,2]
[426018942,1782118652000,-369.79335322,0.00012725,2]
[426018943,1782118652000,-303.87,0.0001114,2]
[426018939,1782118652000,-369.79335322,0.00012725,2]
[426018946,1782118653000,-65.92335322,0.00012725,2]
[426018944,1782118653000,-130.20664678,0.00012725,2]
[426018945,1782118653000,-500.0,0.00012725,2]
[426018947,1782118653000,-434.07664678,0.00012725,2]
[426018949,1782118653000,-65.92335322,0.00012725,2]
[426018950,1782118653000,-303.87,0.00011166,2]
[426018952,1782118653000,-262.05335322,0.00012725,2]
[426018951,1782118653000,-434.07664678,0.00012725,2]
[426018948,1782118653000,-500.0,0.00012725,2]
[426018953,1782118654000,-237.94664678,0.00012725,2]
[426018954,1782118654000,-500.0,0.00012725,2]
[426018955,1782118654000,-262.05335322,0.00012725,2]
[426018956,1782118654000,-303.87,0.00011193,2]
[426018958,1782118654000,-458.18335322,0.00012725,2]
[426018959,1782118654000,-41.81664678,0.00012725,2]
[426018960,1782118654000,-500.0,0.00012725,2]
[426018961,1782118654000,-458.18335322,0.00012725,2]
[426018957,1782118654000,-237.94664678,0.00012725,2]
[426018970,1782118655000,-500.0,0.00012725,2]
[426018969,1782118655000,-345.68664678,0.00012725,2]
[426018968,1782118655000,-154.31335322,0.00012725,2]
[426018966,1782118655000,-345.68664678,0.00012725,2]
[426018967,1782118655000,-500.0,0.00012725,2]
[426018965,1782118655000,-154.31335322,0.00012725,2]
[426018964,1782118655000,-500.0,0.00012725,2]
[426018963,1782118655000,-41.81664678,0.00012725,2]
[426018962,1782118655000,-303.87,0.0001122,2]
[426018973,1782118656000,-345.68664678,0.00012725,2]
[426018972,1782118656000,-303.87,0.00011247,2]
[426018971,1782118656000,-154.31335322,0.00012725,2]
[426018975,1782118656000,-149.55664678,0.00012725,2]
[426018976,1782118656000,-500.0,0.00012725,2]
[426018977,1782118656000,-350.44335322,0.00012725,2]
[426018974,1782118656000,-350.44335322,0.00012725,2]
[426018979,1782118657000,-149.55664678,0.00012725,2]
[426018978,1782118657000,-303.87,0.00011275,2]
[426018981,1782118657000,-116.48116309,0.00012725,2]
[426018980,1782118657000,-430.09219013,0.00012725,2]
[426018982,1782118657000,-383.51883691,0.00012725,2]
[426018984,1782118657000,-116.48116309,0.00012725,2]
[426018986,1782118657000,-383.51883691,0.00012725,2]
[426018985,1782118657000,-303.87,0.00011304,2]
[426018987,1782118657000,-312.61116309,0.00012725,2]
[426018983,1782118657000,-500.0,0.00012725,2]
[426018989,1782118658000,-500.0,0.00012725,2]
[426018990,1782118658000,-312.61116309,0.00012725,2]
[426018991,1782118658000,-303.87,0.00011333,2]
[426018988,1782118658000,-187.38883691,0.00012725,2]
[426018993,1782118658000,-500.0,0.00012725,2]
[426018994,1782118658000,-8.74116309,0.00012725,2]
[426018996,1782118658000,-408.74116309,0.00012725,2]
[426018995,1782118658000,-591.25883691,0.00012725,2]
[426018992,1782118658000,-187.38883691,0.00012725,2]
[426018997,1782118659000,-91.25883691,0.00012725,2]
[426018999,1782118659000,-408.74116309,0.00012725,2]
[426018998,1782118659000,-500.0,0.00012725,2]
[426019001,1782118659000,-91.25883691,0.00012725,2]
[426019000,1782118659000,-303.87,0.00011362,2]
[426019003,1782118659000,-104.87116309,0.00012726,2]
[426019004,1782118659000,-45.12883691,0.00012726,2]
[426019006,1782118659000,-151.0,0.00012726,2]
[426019005,1782118659000,-151.0,0.00012726,2]
[426019007,1782118659000,-151.0,0.00012726,2]
[426019002,1782118659000,-500.0,0.00012725,2]
[426019014,1782118660000,-151.0,0.00012727,2]
[426019008,1782118660000,-150.0,0.00012726,2]
[426019010,1782118660000,-151.0,0.00012727,2]
[426019009,1782118660000,-151.0,0.00012726,2]
[426019011,1782118660000,-49.87116309,0.00012727,2]
[426019013,1782118660000,-101.12883691,0.00012727,2]
[426019015,1782118660000,-150.0,0.00012727,2]
[426019016,1782118660000,-151.0,0.00012727,2]
[426019012,1782118660000,-303.87,0.00011392,2]
[426019018,1782118660000,-7.99883691,0.00012727,2]
[426019019,1782118660000,-151.0,0.00012727,2]
[426019020,1782118660000,-151.0,0.00012727,2]
[426019021,1782118660000,-232.2885,0.00012728,2]
[426019022,1782118660000,-150.0,0.00012728,2]
[426019023,1782118660000,-152.0,0.00012728,2]
[426019024,1782118660000,-151.0,0.00012728,2]
[426019025,1782118660000,-4.71266309,0.00012728,2]
[426019017,1782118660000,-143.00116309,0.00012727,2]
[426019026,1782118661000,-303.87,0.00011422,2]
[426019027,1782118661000,-148.28733691,0.00012728,2]
[426019028,1782118661000,-391.15210641,0.0001273,2]
[426019029,1782118661000,-156.69055668,0.0001273,2]
[426019031,1782118661000,-500.0,0.0001273,2]
[426019032,1782118661000,-111.02438447,0.0001273,2]
[426019033,1782118661000,-303.87,0.00011453,2]
[426019034,1782118661000,-696.13,0.00012688,2]
[426019030,1782118661000,-388.97561553,0.0001273,2]
[426019037,1782118662000,-696.13,0.00012688,2]
[426019036,1782118662000,-303.87,0.00011484,2]
[426019035,1782118662000,-1000.0,0.00012688,2]
[426019038,1782118663000,-1000.0,0.00012688,2]
[426019039,1782118663000,-303.87,0.00011515,2]
[426019040,1782118663000,-499.77062538,0.00012688,2]
[426019044,1782118663000,-500.0,0.0001273,2]
[426019042,1782118663000,-192.61624091,0.0001273,2]
[426019043,1782118663000,-188.96001747,0.0001273,2]
[426019045,1782118663000,-118.42374162,0.0001273,2]
[426019041,1782118663000,-196.35937462,0.0001273,2]
[426019046,1782118664000,-303.87,0.00011547,2]
[426019049,1782118664000,-303.87,0.0001158,2]
[426019047,1782118664000,-45.7065767,0.0001273,2]
[426019048,1782118664000,-650.4234233,0.00012731,2]
[426019052,1782118665000,-303.87,0.00011612,2]
[426019051,1782118665000,-1000.0,0.00012731,2]
[426019050,1782118665000,-696.13,0.00012731,2]
[426019053,1782118665000,-696.13,0.00012731,2]
[426019056,1782118666000,-696.13,0.00012731,2]
[426019055,1782118666000,-303.87,0.00011645,2]
[426019054,1782118666000,-1000.0,0.00012731,2]
[426019060,1782118667000,-1000.0,0.00012688,2]
[426019059,1782118667000,-696.13,0.00012731,2]
[426019058,1782118667000,-303.87,0.00011679,2]
[426019057,1782118667000,-1000.0,0.00012731,2]
[426019062,1782118668000,-696.13,0.00012688,2]
[426019061,1782118668000,-303.87,0.00011713,2]
[426019067,1782118669000,-303.87,0.00011782,2]
[426019068,1782118669000,-696.13,0.00012731,2]
[426019066,1782118669000,-151.21827587,0.00012731,2]
[426019065,1782118669000,-544.91172413,0.00012688,2]
[426019064,1782118669000,-303.87,0.00011747,2]
[426019063,1782118669000,-1000.0,0.00012688,2]
[426019072,1782118670000,-1000.0,0.00012731,2]
[426019071,1782118670000,-696.13,0.00012731,2]
[426019070,1782118670000,-303.87,0.00011817,2]
[426019069,1782118670000,-1000.0,0.00012731,2]
[426019073,1782118671000,-1000.0,0.00012731,2]
[426019075,1782118672000,-1000.0,0.00012731,2]
[426019074,1782118672000,-1000.0,0.00012731,2]
[426019076,1782118673000,-1000.0,0.00012731,2]
[426019079,1782118674000,-1000.0,0.00012731,2]
[426019078,1782118674000,-1000.0,0.00012731,2]
[426019077,1782118674000,-1000.0,0.00012731,2]
[426019082,1782118675000,-1000.0,0.00012731,2]
[426019081,1782118675000,-1000.0,0.00012731,2]
[426019080,1782118675000,-1000.0,0.00012731,2]
[426019083,1782118676000,-1000.0,0.00012731,2]
[426019085,1782118677000,-1000.0,0.00012731,2]
[426019084,1782118677000,-1000.0,0.00012731,2]
[426019086,1782118679000,-1000.0,0.00012731,2]
[426019087,1782118680000,-1000.0,0.00012731,2]
[426019088,1782118681000,-500.0,0.00012725,2]
[426019089,1782118681000,-500.0,0.00012725,2]
[426019090,1782118681000,-1000.0,0.00012731,2]
[426019092,1782118682000,-1000.0,0.00012731,2]
[426019091,1782118682000,-1000.0,0.00012731,2]
[426019093,1782118683000,-1000.0,0.00012731,2]
[426019094,1782118684000,-1000.0,0.00012731,2]
[426019096,1782118686000,-1000.0,0.00012731,2]
[426019095,1782118686000,-1000.0,0.00012731,2]
[426019097,1782118687000,-1000.0,0.00012731,2]
[426019098,1782118696000,-324.0,0.00012731,2]
[426019126,1782119301000,171.34,9.364e-05,2]
[426019128,1782119427000,-302.43,0.00011193,2]
[426019198,1782119432000,-500.0,0.00012265,2]
[426019170,1782119432000,-370.79771124,0.00012264,2]
[426019165,1782119432000,-1852.42,0.00012152,2]
[426019164,1782119432000,-2935.51,0.00012077,2]
[426019163,1782119432000,-42078.97,0.00012055,2]
[426019162,1782119432000,-256.10668052,0.0001199,2]
[426019159,1782119432000,-2935.51,0.00011782,2]
[426019160,1782119432000,-192.0,0.00011861,2]
[426019152,1782119432000,-505.81290247,0.00011522,2]
[426019157,1782119432000,-150.0,0.00011748,2]
[426019158,1782119432000,-453.44,0.00011753,2]
[426019153,1782119432000,-302.43,0.0001161,2]
[426019154,1782119432000,-150.0,0.00011635,2]
[426019156,1782119432000,-193.0,0.00011729,2]
[426019151,1782119432000,-500.0,0.00011522,2]
[426019155,1782119432000,-984.05,0.00011676,2]
[426019149,1782119432000,-150.0,0.00011409,2]
[426019150,1782119432000,-150.0,0.00011522,2]
[426019148,1782119432000,-4793.22661974,0.00011404,2]
[426019146,1782119432000,-710.82338026,0.00011404,2]
[426019145,1782119432000,-285.05513885,0.00011402,2]
[426019144,1782119432000,-250.0,0.00011402,2]
[426019147,1782119432000,-1241.56,0.00011404,2]
[426019143,1782119432000,-500.0,0.00011297,2]
[426019142,1782119432000,-472.71,0.00011218,2]
[426019141,1782119432000,-184.84,0.00010986,2]
[426019166,1782119432000,-155.0,0.00012152,2]
[426019167,1782119432000,-221.7676125,0.00012152,2]
[426019161,1782119432000,-193.0,0.0001199,2]
[426019169,1782119432000,-150.0,0.00012264,2]
[426019194,1782119432000,-500.0,0.00012265,2]
[426019192,1782119432000,-500.0,0.00012265,2]
[426019195,1782119432000,-500.0,0.00012265,2]
[426019193,1782119432000,-500.0,0.00012265,2]
[426019190,1782119432000,-500.0,0.00012265,2]
[426019197,1782119432000,-500.0,0.00012265,2]
[426019189,1782119432000,-405.99761715,0.00012265,2]
[426019168,1782119432000,-322.85158625,0.00012152,7]
[426019188,1782119432000,-500.0,0.00012265,2]
[426019185,1782119432000,-500.0,0.00012265,2]
[426019187,1782119432000,-500.0,0.00012265,2]
[426019196,1782119432000,-500.0,0.00012265,2]
[426019186,1782119432000,-500.0,0.00012265,2]
[426019181,1782119432000,-500.0,0.00012265,2]
[426019191,1782119432000,-500.0,0.00012265,2]
[426019180,1782119432000,-500.0,0.00012265,2]
[426019182,1782119432000,-500.0,0.00012265,2]
[426019171,1782119432000,-129.20228876,0.00012264,2]
[426019172,1782119432000,-193.1159225,0.00012264,2]
[426019174,1782119432000,-500.0,0.00012265,2]
[426019177,1782119432000,-500.0,0.00012265,2]
[426019178,1782119432000,-500.0,0.00012265,2]
[426019176,1782119432000,-500.0,0.00012265,2]
[426019183,1782119432000,-500.0,0.00012265,2]
[426019184,1782119432000,-500.0,0.00012265,2]
[426019173,1782119432000,-500.0,0.00012265,2]
[426019179,1782119432000,-500.0,0.00012265,2]
[426019175,1782119432000,-500.0,0.00012265,2]
[426019212,1782119433000,-300.39786889,0.00012313,2]
[426019204,1782119433000,-500.0,0.00012265,2]
[426019213,1782119433000,-250.0,0.00012313,2]
[426019210,1782119433000,-158.22,0.00012266,2]
[426019207,1782119433000,-500.0,0.00012265,2]
[426019199,1782119433000,-289.5552908,0.00012265,2]
[426019201,1782119433000,-500.0,0.00012265,2]
[426019205,1782119433000,-500.0,0.00012265,2]
[426019206,1782119433000,-500.0,0.00012265,2]
[426019203,1782119433000,-500.0,0.00012265,2]
[426019202,1782119433000,-500.0,0.00012265,2]
[426019200,1782119433000,-500.0,0.00012265,2]
[426019209,1782119433000,-500.0,0.00012265,2]
[426019208,1782119433000,-500.0,0.00012265,2]
[426019211,1782119433000,-165.73,0.00012305,2]
[426019218,1782119433000,-322.85158625,0.00012395,7]
[426019217,1782119433000,-302.43,0.00012371,2]
[426019220,1782119433000,-1960.3767874,0.00012468,2]
[426019228,1782119433000,-2579.23615866,0.00012563,2]
[426019229,1782119433000,-400.45,0.00012563,2]
[426019225,1782119433000,-44991.92202777,0.00012563,2]
[426019224,1782119433000,-20142.02429733,0.00012563,2]
[426019226,1782119433000,-1254.41808677,0.00012563,2]
[426019222,1782119433000,-430.50132065,0.00012531,2]
[426019227,1782119433000,-4235.79494247,0.00012563,2]
[426019221,1782119433000,-174.02649023,0.000125,2]
[426019214,1782119433000,-500.0,0.00012313,2]
[426019215,1782119433000,-38.52531469,0.00012371,2]
[426019219,1782119433000,-1992.77219626,0.00012468,2]
[426019216,1782119433000,-2896.98468531,0.00012371,2]
[426019223,1782119433000,-500.0,0.00012539,2]
[426019304,1782119438000,-1000.0,0.0001273,2]
[426019306,1782119438000,-1118.36601894,0.0001273,3]
[426019303,1782119438000,-1000.0,0.0001273,2]
[426019296,1782119438000,-1000.0,0.0001273,2]
[426019295,1782119438000,-1306.15136855,0.0001273,3]
[426019290,1782119438000,-12100.0,0.000127,4]
[426019297,1782119438000,-1000.0,0.0001273,2]
[426019292,1782119438000,-54615.0,0.00012712,2]
[426019305,1782119438000,-1118.36601894,0.0001273,3]
[426019298,1782119438000,-1000.0,0.0001273,2]
[426019302,1782119438000,-1000.0,0.0001273,2]
[426019313,1782119438000,-322.85158625,0.00012759,7]
[426019309,1782119438000,-151.0,0.00012731,2]
[426019308,1782119438000,-150.0,0.00012731,2]
[426019311,1782119438000,-200.0,0.00012731,2]
[426019310,1782119438000,-200.0,0.00012731,2]
[426019312,1782119438000,-200.0,0.00012731,2]
[426019293,1782119438000,-245.1,0.00012727,2]
[426019317,1782119438000,-500.0,0.00012813,2]
[426019315,1782119438000,-18100.0,0.000128,4]
[426019324,1782119438000,-158.22,0.00012912,2]
[426019314,1782119438000,-1300.0,0.000128,4]
[426019316,1782119438000,-1201.16654592,0.00012806,2]
[426019326,1782119438000,-150.0,0.00012986,7]
[426019307,1782119438000,-1118.36601893,0.0001273,3]
[426019300,1782119438000,-1000.0,0.0001273,2]
[426019288,1782119438000,-189.39269733,0.00012667,2]
[426019294,1782119438000,-151.0,0.0001273,2]
[426019325,1782119438000,-2935.51,0.00012961,2]
[426019250,1782119438000,-1813.81877309,0.00012553,2]
[426019252,1782119438000,-12954.12882133,0.00012563,2]
[426019255,1782119438000,-2413442.02566567,0.00012563,2]
[426019248,1782119438000,-5687.97364128,0.00012468,2]
[426019260,1782119438000,-6000.0,0.000126,4]
[426019258,1782119438000,-174.02649023,0.000126,2]
[426019257,1782119438000,-189.39269733,0.00012568,2]
[426019262,1782119438000,-1118.36601894,0.0001263,3]
[426019264,1782119438000,-666321.4196,0.00012631,2]
[426019266,1782119438000,-1374.32466088,0.00012631,2]
[426019301,1782119438000,-1000.0,0.0001273,2]
[426019270,1782119438000,-9414.1047,0.00012631,2]
[426019276,1782119438000,-1813.81877309,0.00012653,2]
[426019278,1782119438000,-14031.357386,0.00012663,2]
[426019274,1782119438000,-160.0,0.00012635,2]
[426019281,1782119438000,-3299.9025932,0.00012663,2]
[426019287,1782119438000,-2935.51,0.00012666,2]
[426019283,1782119438000,-83989.6661861,0.00012663,2]
[426019289,1782119438000,-600.0,0.000127,4]
[426019284,1782119438000,-779209.724587,0.00012663,2]
[426019286,1782119438000,-9028.1635165,0.00012663,2]
[426019299,1782119438000,-1000.0,0.0001273,2]
[426019291,1782119438000,-52927.0,0.00012712,2]
[426019268,1782119438000,-1079.3893,0.00012631,2]
[426019319,1782119438000,-200.0,0.00012858,2]
[426019272,1782119438000,-2500.0,0.00012631,2]
[426019321,1782119438000,-200.0,0.00012858,2]
[426019348,1782119438000,-500.0,0.00013635,2]
[426019355,1782119438000,-500.0,0.00013698,2]
[426019354,1782119438000,-500.0,0.00013698,2]
[426019366,1782119438000,-500.0,0.00013698,2]
[426019357,1782119438000,-500.0,0.00013698,2]
[426019365,1782119438000,-500.0,0.00013698,2]
[426019356,1782119438000,-500.0,0.00013698,2]
[426019360,1782119438000,-500.0,0.00013698,2]
[426019358,1782119438000,-500.0,0.00013698,2]
[426019359,1782119438000,-627.747717,0.00013698,2]
[426019363,1782119438000,-500.0,0.00013698,2]
[426019350,1782119438000,-186.27,0.00013652,2]
[426019376,1782119438000,-500.0,0.00013698,2]
[426019362,1782119438000,-500.0,0.00013698,2]
[426019367,1782119438000,-500.0,0.00013698,2]
[426019371,1782119438000,-500.0,0.00013698,2]
[426019369,1782119438000,-500.0,0.00013698,2]
[426019368,1782119438000,-500.0,0.00013698,2]
[426019370,1782119438000,-500.0,0.00013698,2]
[426019372,1782119438000,-500.0,0.00013698,2]
[426019373,1782119438000,-500.0,0.00013698,2]
[426019374,1782119438000,-500.0,0.00013698,2]
[426019375,1782119438000,-500.0,0.00013698,2]
[426019318,1782119438000,-193.0,0.00012844,2]
[426019361,1782119438000,-505.07473638,0.00013698,2]
[426019349,1782119438000,-1085.27,0.00013652,2]
[426019364,1782119438000,-500.0,0.00013698,2]
[426019353,1782119438000,-450.29316309,0.00013698,2]
[426019322,1782119438000,-1900.0,0.000129,4]
[426019346,1782119438000,-158.22,0.00013557,2]
[426019320,1782119438000,-200.0,0.00012858,2]
[426019323,1782119438000,-24200.0,0.000129,4]
[426019328,1782119438000,-200.0,0.00012987,2]
[426019339,1782119438000,-255.0,0.00013355,2]
[426019338,1782119438000,-200.0,0.00013248,2]
[426019330,1782119438000,-500.0,0.00013087,2]
[426019331,1782119438000,-200.0,0.00013117,2]
[426019329,1782119438000,-200.0,0.00012987,2]
[426019336,1782119438000,-200.0,0.00013248,2]
[426019334,1782119438000,-322.85158625,0.00013124,7]
[426019335,1782119438000,-984.05,0.00013136,2]
[426019327,1782119438000,-200.0,0.00012987,2]
[426019337,1782119438000,-200.0,0.00013248,2]
[426019347,1782119438000,-322.85158629,0.0001361,7]
[426019345,1782119438000,-176.21,0.00013525,2]
[426019343,1782119438000,-250.0,0.00013367,2]
[426019340,1782119438000,-500.0,0.00013361,2]
[426019351,1782119438000,-1992.77219624,0.00013684,2]
[426019344,1782119438000,-5202.35,0.00013451,2]
[426019352,1782119438000,-1960.37678739,0.00013684,2]
[426019341,1782119438000,-229.05634178,0.00013367,2]
[426019332,1782119438000,-200.0,0.00013117,2]
[426019333,1782119438000,-200.0,0.00013117,2]
[426019342,1782119438000,-193.0,0.00013367,2]
[426019421,1782119439000,-6000.0,0.000146,5]
[426019419,1782119439000,-984.05,0.00014595,2]
[426019416,1782119439000,-3200.0,0.000145,5]
[426019414,1782119439000,-165.73,0.00014336,2]
[426019413,1782119439000,-902.697694,0.00014298,2]
[426019411,1782119439000,-548.96,0.00013939,2]
[426019410,1782119439000,-500.0,0.00013909,2]
[426019408,1782119439000,-150.0,0.00013752,2]
[426019409,1782119439000,-653.57150844,0.00013901,2]
[426019407,1782119439000,-258.82291954,0.00013752,2]
[426019420,1782119439000,-600.0,0.000146,5]
[426019412,1782119439000,-250.0,0.00013959,2]
[426019418,1782119439000,-433.0,0.00014545,2]
[426019432,1782119439000,-6000.0,0.000149,5]
[426019427,1782119439000,-219.986426,0.000147,2]
[426019423,1782119439000,-150.0,0.00014696,2]
[426019422,1782119439000,-183.5,0.00014641,2]
[426019426,1782119439000,-6000.0,0.000147,5]
[426019424,1782119439000,-150.0,0.00014696,2]
[426019425,1782119439000,-600.0,0.000147,5]
[426019429,1782119439000,-6000.0,0.000148,5]
[426019431,1782119439000,-600.0,0.000149,5]
[426019439,1782119439000,-1000.0,0.00014999,2]
[426019428,1782119439000,-600.0,0.000148,5]
[426019433,1782119439000,-430.50132064,0.000149,2]
[426019406,1782119439000,-500.0,0.00013752,2]
[426019417,1782119439000,-30300.0,0.000145,5]
[426019415,1782119439000,-2600.0,0.000144,5]
[426019377,1782119439000,-500.0,0.00013698,2]
[426019405,1782119439000,-239.72538105,0.00013752,2]
[426019379,1782119439000,-500.0,0.00013698,2]